fUSD/lending_fUSD_20250204
["ID","MTS","AMOUNT","RATE_DAILY","PERIOD"]
[351568034,1738627239876,166.66,7.588e-05,2]
[351568035,1738627240254,166.66,7.838e-05,2]
[351568036,1738627281385,4449.66713694,0.00019903,120]
[351568037,1738627308168,2580.3722898,0.00019903,120]
[351568038,1738627472987,179.34,7.35e-05,2]
[351568039,1738627492849,217.0,8e-05,2]
[351568040,1738627506752,150.0,7.915e-05,2]
[351568041,1738627510185,150.0,7.915e-05,2]
[351568042,1738627567189,173.64,7.37e-05,2]
[351568043,1738627582458,150.0,8.005e-05,2]
[351568044,1738627597116,-150.53258837,8.042e-05,2]
[351568045,1738627625091,-199.15741163,8.042e-05,2]
[351568046,1738627625114,-349.69,8.044e-05,2]
[351568047,1738627625136,-118.16751272,8.046e-05,2]
[351568048,1738627636112,-231.52248728,8.046e-05,2]
[351568049,1738627636134,-349.69,8.048e-05,2]
[351568050,1738627636158,-349.69,8.05e-05,2]
[351568051,1738627636181,-349.69,8.052e-05,2]
[351568052,1738627636203,-349.69,8.055e-05,2]
[351568053,1738627636225,-349.69,8.057e-05,2]
[351568054,1738627636248,-349.69,8.059e-05,2]
[351568055,1738627636270,-349.69,8.061e-05,2]
[351568056,1738627636296,-349.69,8.063e-05,2]
[351568057,1738627636319,-349.69,8.065e-05,2]
[351568058,1738627636340,-349.69,8.067e-05,2]
[351568059,1738627636364,-349.69,8.069e-05,2]
[351568060,1738627636388,-349.69,8.071e-05,2]
[351568061,1738627636410,-349.69,8.074e-05,2]
[351568062,1738627636433,-349.69,8.076e-05,2]
[351568063,1738627636456,-349.69,8.078e-05,2]
[351568064,1738627636479,-349.69,8.08e-05,2]
[351568065,1738627636501,-349.69,8.082e-05,2]
[351568066,1738627636523,-166.66,8.089e-05,2]
[351568067,1738627636549,-150.0,8.091e-05,2]
[351568068,1738627636572,-816.46,8.215e-05,2]
[351568069,1738627636595,-150.0,8.219e-05,2]
[351568070,1738627636618,-300.0,8.219e-05,2]
[351568071,1738627636641,-166.44,8.219e-05,2]
[351568072,1738627636664,-250.0,8.219e-05,2]
[351568073,1738627636685,-636.37,8.219e-05,2]
[351568074,1738627636707,-392.29661225,8.219e-05,2]
[351568075,1738627643130,165.36,6.313e-05,2]
[351568076,1738627643572,165.36,6.944e-05,2]
[351568077,1738627643823,165.36,7.575e-05,2]
[351568078,1738627677490,197.22,7.871e-05,2]
[351568079,1738627744912,150.29,7.864e-05,2]
[351568080,1738627797151,200.0,7.838e-05,2]
[351568081,1738627803781,174.41654322,7.838e-05,2]
[351568082,1738627803804,18.05345678,7.838e-05,2]
[351568083,1738627818378,156.03,7.832e-05,2]
[351568089,1738627831708,-165.36,8.206e-05,2]
[351568090,1738627831718,-902.9850485,8.219e-05,2]
[351568091,1738627831779,-780.99833925,8.219e-05,2]
[351568092,1738627831789,-1000.0,8.219e-05,2]
[351568093,1738627831799,-150.0,8.267e-05,2]
[351568094,1738627831809,-168.81,8.269e-05,2]
[351568095,1738627831819,-166.66,8.339e-05,2]
[351568096,1738627831829,-300.0,8.4e-05,2]
[351568097,1738627831839,-876.8,8.4e-05,2]
[351568098,1738627831849,-150.0,8.443e-05,2]
[351568099,1738627831859,-512.0,8.45e-05,2]
[351568100,1738627831869,-166.66,8.59e-05,2]
[351568101,1738627831879,-150.0,8.619e-05,2]
[351568102,1738627831889,-8929.47948141,8.7e-05,2]
[351568103,1738627831937,-2801.73331859,8.7e-05,2]
[351568104,1738627831946,-2610.4163,8.7e-05,2]
[351568105,1738627831956,-213.2049,8.7e-05,2]
[351568106,1738627831966,-18450.59717251,8.7e-05,2]
[351568107,1738627831975,-878.68,8.758e-05,2]
[351568108,1738627831986,-774.65,8.758e-05,2]
[351568109,1738627831998,-774.65,8.758e-05,2]
[351568110,1738627832007,-150.0,8.772e-05,2]
[351568111,1738627832017,-150.741,8.773e-05,2]
[351568112,1738627832027,-153.71454165,8.773e-05,2]
[351568113,1738627832037,-162.07518226,8.773e-05,2]
[351568114,1738627832047,-500.0,8.773e-05,2]
[351568115,1738627832058,-2074.141,8.773e-05,2]
[351568116,1738627832067,-628.7880688,8.789e-05,2]
[351568117,1738627832077,-2378.3604567,8.789e-05,2]
[351568118,1738627832086,-1480.5901133,8.789e-05,2]
[351568119,1738627832103,-6826.0661634,8.789e-05,2]
[351568120,1738627832113,-678.8373829,8.789e-05,2]
[351568121,1738627832124,-214.6695155,8.793e-05,2]
[351568122,1738627832134,-220.6389352,8.794e-05,2]
[351568123,1738627832143,-646.2730846,8.794e-05,2]
[351568124,1738627832153,-2359.5238046,8.794e-05,2]
[351568126,1738627832164,-1436.0108512,8.794e-05,2]
[351568128,1738627832173,-6620.5393331,8.794e-05,2]
[351568130,1738627832187,-658.3981882,8.794e-05,2]
[351568132,1738627832197,-492.59726738,8.794e-05,2]
[351568137,1738627832255,-3652.04791392,8.794e-05,2]
[351568139,1738627832265,-150.0,8.795e-05,2]
[351568141,1738627832274,-2000.0,8.799e-05,2]
[351568143,1738627832284,-2000.0,8.799e-05,2]
[351568145,1738627832295,-500.0,8.799e-05,2]
[351568148,1738627832305,-536.0,8.8e-05,2]
[351568151,1738627832316,-113044.39597932,8.8e-05,2]
[351568154,1738627832329,-20328.14527005,8.8e-05,2]
[351568196,1738627837767,-157.0416563,8.789e-05,2]
[351568197,1738627837777,-157.0416563,8.794e-05,2]
[351568198,1738627837787,-57.50450363,8.8e-05,2]
[351568199,1738627837798,-416.08240922,8.8e-05,2]
[351568200,1738627837832,-16244.49359418,8.8e-05,2]
[351568364,1738627839738,-547.03466666,8.8e-05,2]
[351568366,1738627839750,-452.9945539,8.8e-05,2]
[351568379,1738627839865,-3553.97594792,8.8e-05,2]
[351568387,1738627839937,-3168.19868042,8.8e-05,2]
[351568389,1738627839949,-298.32861001,8.8e-05,2]
[351568392,1738627839962,-2903.25782191,8.8e-05,2]
[351568677,1738627842764,-2082.10866612,8.8e-05,2]
[351568685,1738627842831,-546.71065032,8.8e-05,2]
[351568688,1738627842843,-403.3,8.8e-05,2]
[351569018,1738627846162,-335170.45866862,8.8e-05,2]
[351569020,1738627846178,-611.33374891,8.8e-05,2]
[351569022,1738627846194,-527.54,8.8e-05,2]
[351569024,1738627846206,-2502.1756668,8.8e-05,2]
[351569870,1738627876731,157.95451564,4.641e-05,2]
[351569872,1738628112987,200.0,4.553e-05,2]
[351569873,1738628316603,150.0,7.629e-05,2]
[351569874,1738628316679,1000.0,7.591e-05,2]
[351569875,1738628316716,150.0,7.514e-05,2]
[351569876,1738628316753,150.0,7.753e-05,2]
[351569877,1738628316785,150.0,7.515e-05,2]
[351569878,1738628316828,150.0,7.86e-05,2]
[351569879,1738628326960,150.0,7.925e-05,2]
[351569880,1738628343949,200.0,7.885e-05,2]
[351569881,1738628376413,150.0,7.577e-05,2]
[351569882,1738628376445,1000.0,6.675e-05,2]
[351569883,1738628446560,150.0,7.975e-05,2]
[351569884,1738628500363,165.36,6.142e-05,2]
[351569885,1738628676221,200.0,7.725e-05,2]
[351569886,1738628702871,150.0,7.915e-05,2]
[351569887,1738628743138,173.64,7.666e-05,2]
[351569888,1738628833143,-201.68,8.014e-05,2]
[351569889,1738628833166,-150.0,8.065e-05,2]
[351569890,1738628833189,-300.0,8.218e-05,2]
[351569891,1738628833213,-250.0,8.219e-05,2]
[351569892,1738628833236,-2093.73,8.219e-05,2]
[351569893,1738628833261,-472.23,8.219e-05,2]
[351569894,1738628833289,-1000.0,8.219e-05,2]
[351569895,1738628833311,-183.04,8.228e-05,2]
[351569896,1738628833334,-160.42,8.278e-05,2]
[351569897,1738628833357,-150.0,8.278e-05,2]
[351569898,1738628833383,-1782.37,8.303e-05,2]
[351569899,1738628833405,-491.42814792,8.306e-05,2]
[351569900,1738628849275,2852.82,7.67e-05,2]
[351569901,1738628871834,168.81,7.67e-05,2]
[351569921,1738629003316,205.0,4.641e-05,30]
[351569922,1738629003623,205.0,5.555e-05,30]
[351569923,1738629003952,205.0,6.468e-05,30]
[351569931,1738629004262,205.0,7.382e-05,30]
[351569932,1738629004570,205.0,8.296e-05,30]
[351569933,1738629004883,205.0,9.209e-05,30]
[351569934,1738629007311,205.0,0.00010123,30]
[351569935,1738629007636,205.0,0.00011036,30]
[351569936,1738629007963,205.0,0.0001195,30]
[351569943,1738629031848,-164.43,8.219e-05,2]
[351569944,1738629031858,-250.0,8.219e-05,2]
[351569945,1738629031867,-508.57185208,8.306e-05,2]
[351569946,1738629031876,-711.77,8.31e-05,2]
[351569947,1738629031886,-1549.06,8.31e-05,2]
[351569948,1738629031895,-439.41,8.31e-05,2]
[351569949,1738629031905,-261.13540249,8.31e-05,2]
[351569950,1738629031914,-300.0,8.329e-05,2]
[351569951,1738629031923,-607.97,8.33e-05,2]
[351569952,1738629031934,-150.0,8.355e-05,2]
[351569953,1738629031943,-167.89633428,8.493e-05,2]
[351569954,1738629031955,-293.26366572,8.493e-05,2]
[351569955,1738629031968,-150.0,8.514e-05,2]
[351569956,1738629031978,-150.0,8.517e-05,2]
[351569957,1738629031987,-150.0,8.517e-05,2]
[351569958,1738629031997,-439.41,8.52e-05,2]
[351569959,1738629032006,-150.0,8.53e-05,2]
[351569960,1738629032016,-1556.23,8.53e-05,2]
[351569961,1738629032026,-150.0,8.531e-05,2]
[351569962,1738629032035,-150.0,8.533e-05,2]
[351569963,1738629032044,-150.0,8.533e-05,2]
[351569964,1738629032054,-150.0,8.537e-05,2]
[351569965,1738629032064,-150.64722875,8.539e-05,2]
[351569966,1738629032074,-150.0,8.541e-05,2]
[351569967,1738629032083,-150.0,8.542e-05,2]
[351569968,1738629032092,-150.0,8.544e-05,2]
[351569969,1738629032102,-623.20497353,8.549e-05,2]
[351569970,1738629032114,-376.79502647,8.549e-05,2]
[351569971,1738629032123,-138.19281292,8.552e-05,2]
[351569972,1738629032135,-11.80718708,8.552e-05,2]
[351569973,1738629032144,-150.0,8.558e-05,2]
[351569974,1738629032154,-150.0,8.56e-05,2]
[351569975,1738629032163,-150.0,8.564e-05,2]
[351569976,1738629032173,-150.0,8.566e-05,2]
[351569977,1738629032184,-89.30781292,8.566e-05,2]
[351569980,1738629032218,-60.69218708,8.566e-05,2]
[351569981,1738629032227,-150.0,8.569e-05,2]
[351569982,1738629032238,-150.0,8.573e-05,2]
[351569984,1738629032247,-150.0,8.575e-05,2]
[351569985,1738629032257,-141.53156514,8.575e-05,2]
[351569986,1738629032269,-8.46843486,8.575e-05,2]
[351569987,1738629032278,-150.0,8.579e-05,2]
[351569988,1738629032287,-150.0,8.584e-05,2]
[351569989,1738629032297,-150.0,8.585e-05,2]
[351569991,1738629032305,-150.0,8.589e-05,2]
[351569992,1738629032315,-150.0,8.589e-05,2]
[351569993,1738629032325,-150.0,8.592e-05,2]
[351569994,1738629032335,-150.0,8.593e-05,2]
[351569995,1738629032344,-150.0,8.597e-05,2]
[351569996,1738629032353,-150.0,8.601e-05,2]
[351569997,1738629032363,-150.0,8.602e-05,2]
[351569999,1738629032373,-150.0,8.604e-05,2]
[351570001,1738629032382,-150.0,8.608e-05,2]
[351570003,1738629032391,-150.0,8.608e-05,2]
[351570005,1738629032401,-150.0,8.609e-05,2]
[351570007,1738629032413,-150.0,8.609e-05,2]
[351570009,1738629032424,-150.0,8.612e-05,2]
[351570011,1738629032434,-150.0,8.616e-05,2]
[351570013,1738629032443,-1000.0,8.616e-05,2]
[351570015,1738629032453,-150.0,8.617e-05,2]
[351570017,1738629032463,-150.0,8.625e-05,2]
[351570018,1738629032472,-150.0,8.625e-05,2]
[351570019,1738629032481,-150.0,8.625e-05,2]
[351570020,1738629032491,-150.0,8.625e-05,2]
[351570021,1738629032501,-150.0,8.626e-05,2]
[351570022,1738629032511,-150.0,8.628e-05,2]
[351570023,1738629032520,-150.0,8.629e-05,2]
[351570024,1738629032529,-150.0,8.633e-05,2]
[351570025,1738629032539,-150.0,8.635e-05,2]
[351570026,1738629032548,-150.0,8.64e-05,2]
[351570027,1738629032557,-150.0,8.643e-05,2]
[351570028,1738629032567,-150.0,8.645e-05,2]
[351570029,1738629032576,-150.0,8.646e-05,2]
[351570030,1738629032586,-150.0,8.646e-05,2]
[351570031,1738629032599,-150.0,8.648e-05,2]
[351570032,1738629032608,-150.0,8.65e-05,2]
[351570033,1738629032617,-150.0,8.653e-05,2]
[351570034,1738629032626,-150.0,8.655e-05,2]
[351570035,1738629032636,-150.0,8.656e-05,2]
[351570036,1738629032645,-150.0,8.656e-05,2]
[351570037,1738629032655,-1000.0,8.656e-05,2]
[351570038,1738629032664,-150.0,8.659e-05,2]
[351570039,1738629032674,-150.0,8.66e-05,2]
[351570040,1738629032684,-150.0,8.664e-05,2]
[351570041,1738629032693,-150.0,8.666e-05,2]
[351570042,1738629032704,-150.0,8.668e-05,2]
[351570043,1738629032717,-150.0,8.672e-05,2]
[351570044,1738629032727,-150.0,8.676e-05,2]
[351570045,1738629032736,-150.0,8.68e-05,2]
[351570046,1738629032746,-150.0,8.681e-05,2]
[351570047,1738629032756,-150.0,8.681e-05,2]
[351570048,1738629032765,-150.0,8.682e-05,2]
[351570049,1738629032775,-150.0,8.682e-05,2]
[351570050,1738629032783,-150.0,8.692e-05,2]
[351570051,1738629032794,-150.0,8.693e-05,2]
[351570052,1738629032803,-150.0,8.694e-05,2]
[351570053,1738629032813,-150.0,8.694e-05,2]
[351570054,1738629032823,-150.0,8.694e-05,2]
[351570055,1738629032832,-150.0,8.698e-05,2]
[351570056,1738629032841,-538.0888,8.7e-05,2]
[351570057,1738629032851,-150.0,8.701e-05,2]
[351570058,1738629032860,-150.0,8.703e-05,2]
[351570059,1738629032870,-150.0,8.705e-05,2]
[351570060,1738629032879,-767.34667111,8.707e-05,2]
[351570061,1738629032889,-150.0,8.708e-05,2]
[351570062,1738629032899,-150.0,8.709e-05,2]
[351570063,1738629032908,-150.0,8.711e-05,2]
[351570064,1738629032918,-150.0,8.711e-05,2]
[351570065,1738629032927,-150.0,8.713e-05,2]
[351570066,1738629032938,-875.86,8.713e-05,2]
[351570067,1738629032948,-150.0,8.718e-05,2]
[351570068,1738629032957,-1000.0,8.72e-05,2]
[351570069,1738629032967,-232.65332889,8.723e-05,2]
[351570070,1738629032976,-150.0,8.724e-05,2]
[351570071,1738629032986,-150.0,8.725e-05,2]
[351570072,1738629032996,-150.0,8.726e-05,2]
[351570073,1738629033005,-150.0,8.732e-05,2]
[351570074,1738629033014,-150.0,8.735e-05,2]
[351570075,1738629033024,-150.0,8.736e-05,2]
[351570076,1738629033034,-150.0,8.741e-05,2]
[351570077,1738629033044,-150.0,8.742e-05,2]
[351570078,1738629033053,-150.0,8.744e-05,2]
[351570079,1738629033063,-150.0,8.744e-05,2]
[351570080,1738629033073,-150.0,8.747e-05,2]
[351570081,1738629033083,-150.0,8.752e-05,2]
[351570082,1738629033092,-150.0,8.754e-05,2]
[351570083,1738629033102,-1000.0,8.754e-05,2]
[351570084,1738629033112,-150.0,8.76e-05,2]
[351570085,1738629033122,-150.0,8.762e-05,2]
[351570086,1738629033132,-150.0,8.762e-05,2]
[351570087,1738629033142,-150.0,8.764e-05,2]
[351570088,1738629033151,-150.0,8.768e-05,2]
[351570089,1738629033161,-150.0,8.772e-05,2]
[351570090,1738629033171,-500.0,8.773e-05,2]
[351570091,1738629033181,-150.0,8.773e-05,2]
[351570092,1738629033192,-150.0,8.776e-05,2]
[351570093,1738629033202,-150.0,8.776e-05,2]
[351570094,1738629033213,-150.0,8.78e-05,2]
[351570095,1738629033226,-150.0,8.787e-05,2]
[351570096,1738629033235,-4223.0607002,8.789e-05,2]
[351570097,1738629033244,-1599.9224966,8.789e-05,2]
[351570098,1738629033254,-150.0,8.789e-05,2]
[351570099,1738629033263,-2197.628,8.794e-05,2]
[351570100,1738629033273,-155.762,8.794e-05,2]
[351570101,1738629033282,-4699.5085741,8.794e-05,2]
[351570102,1738629033291,-1780.4265732,8.794e-05,2]
[351570103,1738629033301,-150.0,8.795e-05,2]
[351570104,1738629033310,-2000.0,8.799e-05,2]
[351570105,1738629033319,-500.0,8.799e-05,2]
[351570106,1738629033329,-64328.33087844,8.8e-05,2]
[351570108,1738629037853,-10384.0,8.8e-05,2]
[351570109,1738629037909,-794.17380999,8.8e-05,2]
[351570110,1738629037920,-10134.0,8.8e-05,2]
[351570111,1738629037933,-651.08097995,8.8e-05,2]
[351570112,1738629038084,-2079.20910652,8.8e-05,2]
[351570113,1738629038095,-1235.0,8.8e-05,2]
[351570300,1738629039890,-27807.97481898,8.8e-05,2]
[351570304,1738629039902,-806.0598281,8.8e-05,2]
[351570325,1738629040006,-27426.73516892,8.8e-05,2]
[351570339,1738629040066,-1499.68236061,8.8e-05,2]
[351570342,1738629040079,-508.4463221,8.8e-05,2]
[351570627,1738629042938,-575.84999999,8.8e-05,2]
[351570637,1738629042998,-37451.53428182,8.8e-05,2]
[351570655,1738629043164,-655.07853919,8.8e-05,2]
[351570951,1738629046164,-1237.2,8.8e-05,2]
[351570978,1738629046420,-1626.2994781,8.8e-05,2]
[351570981,1738629046431,-10133.0,8.8e-05,2]
[351570983,1738629046443,-252.71462698,8.8e-05,2]
[351570985,1738629046459,-2028.7916,8.8e-05,2]
[351571246,1738629049986,-688.3749987,8.8e-05,2]
[351571741,1738629304105,150.0,8.8e-05,30]
[351571742,1738629304421,150.0,9.743e-05,30]
[351571743,1738629304732,150.0,0.00010686,30]
[351571744,1738629305086,150.0,0.00011629,30]
[351571745,1738629381510,1980.27,9e-05,13]
[351571746,1738629465114,165.36,6.136e-05,2]
[351571747,1738629603242,150.0,8.8e-05,30]
[351571748,1738629603587,150.0,0.0001012,30]
[351571749,1738629603909,150.0,0.0001144,30]
[351571750,1738629904456,150.0,8.8e-05,30]
[351571751,1738629904765,150.0,0.00010686,30]
[351571752,1738629905909,150.0,7.915e-05,2]
[351571753,1738629909291,150.0,7.915e-05,2]
[351571755,1738630044132,-177.01,8.073e-05,2]
[351571756,1738630044155,-167.47,8.074e-05,2]
[351571757,1738630044182,-173.64,8.075e-05,2]
[351571758,1738630044212,-368.92,8.174e-05,2]
[351571759,1738630044237,-150.0,8.208e-05,2]
[351571760,1738630044261,-300.0,8.218e-05,2]
[351571761,1738630044289,-3377.40592127,8.218e-05,2]
[351571762,1738630053088,-1000.0,8.219e-05,2]
[351571763,1738630053112,-160.42,8.219e-05,2]
[351571764,1738630053134,-1924.38144413,8.219e-05,2]
[351571765,1738630203373,150.0,8.8e-05,30]
[351571766,1738630203675,150.0,0.0001144,30]
[351571767,1738630222551,162.0,8e-05,3]
[351571768,1738630228107,162.0,8e-05,3]
[351571782,1738630232036,-266.47855587,8.219e-05,2]
[351571784,1738630232045,-59.03553413,8.219e-05,2]
[351571786,1738630232057,-302.840001,8.219e-05,2]
[351571796,1738630232145,-169.42446487,8.219e-05,2]
[351571798,1738630232155,-200.0,8.221e-05,2]
[351571799,1738630232164,-250.0,8.42e-05,2]
[351571800,1738630232175,-150.0,8.501e-05,2]
[351571801,1738630232184,-236.73083173,8.501e-05,2]
[351571802,1738630232425,-499.23794914,8.501e-05,2]
[351571804,1738630232435,-150.0,8.575e-05,2]
[351571806,1738630232444,-302.03,8.58e-05,2]
[351571807,1738630232453,-150.0,8.58e-05,2]
[351571809,1738630232462,-150.0,8.58e-05,2]
[351571811,1738630232472,-150.0,8.599e-05,2]
[351571812,1738630232482,-126.18257437,8.6e-05,2]
[351571814,1738630232493,-78881.26615492,8.6e-05,2]
[351571816,1738630232502,-150.0,8.6e-05,2]
[351571818,1738630232511,-1892.5,8.7e-05,2]
[351571819,1738630232521,-1895.366,8.7e-05,2]
[351571820,1738630232531,-500.0,8.773e-05,2]
[351571821,1738630232539,-4525.5006315,8.789e-05,2]
[351571822,1738630232549,-1863.7311587,8.789e-05,2]
[351571823,1738630232557,-238.8498861,8.793e-05,2]
[351571824,1738630232567,-238.8498861,8.794e-05,2]
[351571825,1738630232576,-4436.3502482,8.794e-05,2]
[351571826,1738630232585,-1832.7225591,8.794e-05,2]
[351571827,1738630232594,-150.0,8.795e-05,2]
[351571828,1738630232603,-150.0,8.795e-05,2]
[351571829,1738630232613,-3722.92612688,8.799e-05,2]
[351571830,1738630232622,-500.0,8.799e-05,2]
[351571831,1738630232631,-500.0,8.799e-05,2]
[351571832,1738630232640,-500.0,8.799e-05,2]
[351571833,1738630232652,-500.0,8.799e-05,2]
[351571834,1738630232661,-500.0,8.799e-05,2]
[351571835,1738630232670,-500.0,8.799e-05,2]
[351571836,1738630232679,-522.92880972,8.799e-05,2]
[351571837,1738630232688,-500.0,8.799e-05,2]
[351571838,1738630232697,-2000.0,8.799e-05,2]
[351571839,1738630232706,-13347.86651381,8.8e-05,2]
[351571840,1738630232935,-255.97559429,8.8e-05,2]
[351571841,1738630232963,-871.53695397,8.8e-05,2]
[351571842,1738630232975,-667.83262828,8.8e-05,2]
[351571843,1738630232996,-255.0,8.8e-05,2]
[351571844,1738630233014,-738.28,8.8e-05,2]
[351571847,1738630237982,-166.1439808,8.789e-05,2]
[351571848,1738630237993,-163.3796914,8.794e-05,2]
[351571849,1738630238003,-213131.84168869,8.8e-05,2]
[351571850,1738630238016,-344575.584,8.8e-05,2]
[351571851,1738630238028,-388182.5629722,8.8e-05,2]
[351571852,1738630238042,-5733.99999998,8.8e-05,2]
[351571853,1738630238105,-6043.36411802,8.8e-05,2]
[351571854,1738630238164,-50457.4610984,8.8e-05,2]
[351571855,1738630238176,-1000.545,8.8e-05,2]
[351571858,1738630238299,-422.97571748,8.8e-05,2]
[351572025,1738630239966,-607.36,8.8e-05,2]
[351572027,1738630239979,-3408.2034,8.8e-05,2]
[351572029,1738630239991,-112920.79729554,8.8e-05,2]
[351572031,1738630240001,-5560333.39018665,8.8e-05,2]
[351572041,1738630240084,-1068.85270676,8.8e-05,2]
[351572049,1738630240143,-1061.31826623,8.8e-05,2]
[351572051,1738630240155,-1078.2000003,8.8e-05,2]
[351572053,1738630240166,-285.2135,8.8e-05,2]
[351572058,1738630240203,-79252.0,8.8e-05,2]
[351572065,1738630240263,-20821.14984416,8.8e-05,2]
[351572358,1738630243112,-260.42388061,8.775e-05,2]
[351572360,1738630243121,-3749.41248823,8.8e-05,2]
[351572363,1738630243137,-936.4657594,8.8e-05,2]
[351572668,1738630246161,-8583.47489991,8.8e-05,2]
[351572670,1738630246174,-202699.00598761,8.8e-05,2]
[351572709,1738630246545,-500.0,8.8e-05,2]
[351572951,1738630314614,35683.25,8e-05,2]
[351572952,1738630326418,207.0,8e-05,2]
[351572957,1738630476511,1000.0,7.924e-05,2]
[351572958,1738630476595,1000.0,7.654e-05,2]
[351572959,1738630504442,151.0,7.654e-05,30]
[351572960,1738630596537,1000.0,7.865e-05,2]
[351572961,1738630596703,1000.0,7.655e-05,2]
[351572962,1738630604504,232.65332889,7.347e-05,2]
[351572967,1738630674635,23900.0,7.854e-05,2]
[351572968,1738630676196,274.43,7.835e-05,2]
[351572970,1738630788884,152.0,0.00010954,15]
[351572971,1738630805501,151.0,7.654e-05,30]
[351572972,1738630896125,173.64,7.781e-05,2]
[351572973,1738630992022,2798.62,7.759e-05,2]
[351572975,1738631103276,151.0,7.654e-05,30]
[351572976,1738631111780,150.0,7.915e-05,2]
[351572977,1738631119291,170.14,7.992e-05,2]
[351572978,1738631212132,-150.9394367,8.15e-05,2]
[351572979,1738631249106,-1092.8505633,8.15e-05,2]
[351572980,1738631249127,-250.0,8.219e-05,2]
[351572981,1738631249151,-1000.0,8.219e-05,2]
[351572982,1738631249172,-2101.7,8.219e-05,2]
[351572983,1738631249193,-166.48,8.219e-05,2]
[351572984,1738631249212,-200.0,8.265e-05,2]
[351572985,1738631249235,-150.0,8.271e-05,2]
[351572986,1738631249256,-1000.0,8.321e-05,2]
[351572987,1738631249276,-767.34667111,8.434e-05,2]
[351572988,1738631249296,-300.0,8.44e-05,2]
[351572989,1738631249318,-411.0,8.484e-05,2]
[351572990,1738631249340,-1316.11225067,8.6e-05,2]
[351572991,1738631251098,-908.80389407,8.6e-05,2]
[351572992,1738631403734,152.33836822,7.654e-05,30]
[351572998,1738631432343,-250.0,8.219e-05,2]
[351572999,1738631432353,-1000.0,8.219e-05,2]
[351573000,1738631432363,-1481.653,8.6e-05,2]
[351573001,1738631432374,-154.7971,8.6e-05,2]
[351573002,1738631432384,-170.14,8.651e-05,2]
[351573003,1738631432399,-150.0,8.697e-05,2]
[351573004,1738631432411,-907.0,8.698e-05,2]
[351573005,1738631432422,-1369.8,8.698e-05,2]
[351573006,1738631432434,-2953.0,8.698e-05,2]
[351573007,1738631432444,-911.451,8.698e-05,2]
[351573008,1738631432455,-538.0,8.698e-05,2]
[351573009,1738631432467,-1324.0,8.698e-05,2]
[351573010,1738631432479,-2118.487,8.699e-05,2]
[351573011,1738631432490,-391.43653441,8.699e-05,2]
[351573012,1738631432501,-1492.3731,8.7e-05,2]
[351573013,1738631432512,-2689.15918228,8.7e-05,2]
[351573014,1738631432527,-3886.36971772,8.7e-05,2]
[351573015,1738631432537,-221.5144,8.7e-05,2]
[351573016,1738631432548,-792.3278,8.7e-05,2]
[351573017,1738631432559,-387.3388,8.7e-05,2]
[351573018,1738631432570,-45217.44928228,8.7e-05,2]
[351573019,1738631432614,-516571.59811772,8.7e-05,2]
[351573020,1738631432625,-152.0,8.71e-05,3]
[351573021,1738631432635,-150.99,8.71e-05,2]
[351573022,1738631432646,-299.99,8.71e-05,2]
[351573023,1738631432656,-150.99,8.71e-05,2]
[351573024,1738631432668,-30353.55,8.71e-05,2]
[351573025,1738631432679,-6606.1,8.71e-05,2]
[351573027,1738631432690,-999.99,8.71e-05,2]
[351573028,1738631432700,-2062.47,8.71e-05,2]
[351573029,1738631432711,-9999.99,8.71e-05,2]
[351573030,1738631432723,-591.79361494,8.773e-05,2]
[351573031,1738631432735,-1075.141,8.78e-05,2]
[351573033,1738631432746,-3910.0,8.78e-05,2]
[351573035,1738631432757,-236.252,8.78e-05,2]
[351573037,1738631432768,-156.023,8.78e-05,2]
[351573039,1738631432778,-1323.5387948,8.793e-05,2]
[351573042,1738631432789,-3216.1903279,8.793e-05,2]
[351573044,1738631432800,-1387.7715365,8.794e-05,2]
[351573046,1738631432810,-3372.2754562,8.794e-05,2]
[351573048,1738631432821,-500.0,8.799e-05,2]
[351573050,1738631432832,-741.0,8.8e-05,2]
[351573052,1738631432842,-615807.18287909,8.8e-05,2]
[351573054,1738631432855,-400.86620647,8.8e-05,2]
[351573084,1738631438396,-810.60000698,8.78e-05,2]